bitfinex-derivatives/quotes_SOLF0:USTF0_20250606
["timestamp","ask_amount","ask_price","bid_price","bid_amount"]
[1749172303167,9.00994871,145.2,145.19,4.9917519]
[1749172303366,9.00994871,145.2,145.19,11.8758519]
[1749172303558,13.74970679,145.2,145.19,11.8758519]
[1749172303763,10.81390936,145.2,145.19,11.8758519]
[1749172303964,13.75057613,145.2,145.19,11.8758519]
[1749172304165,0.0521127,145.21,145.19,11.8758519]
[1749172306069,4.76067472,145.2,145.19,11.8758519]
[1749172306369,4.76066795,145.2,145.19,11.8758519]
[1749172306567,0.0521127,145.21,145.19,11.8758519]
[1749172306870,4.76985115,145.2,145.19,11.8758519]
[1749172307569,10.85195772,145.2,145.19,11.8758519]
[1749172307871,6.08261284,145.2,145.19,11.8758519]
[1749172308172,0.0521127,145.21,145.19,11.8758519]
[1749172308672,0.0521127,145.21,145.2,6.8837]
[1749172308859,6.1351927,145.21,145.2,6.8837]
[1749172309571,10.90502753,145.21,145.2,6.8837]
[1749172309766,10.90504554,145.21,145.2,6.8837]
[1749172310063,6.1351927,145.21,145.2,6.8837]
[1749172310268,10.90566375,145.21,145.2,6.8837]
[1749172310471,13.85922408,145.21,145.2,6.8837]
[1749172310667,13.85730792,145.21,145.2,6.8837]
[1749172310969,13.85731691,145.21,145.2,6.8837]
[1749172311170,13.85731623,145.21,145.2,6.8837]
[1749172311366,13.85716213,145.21,145.2,6.8837]
[1749172311572,13.85743983,145.21,145.19,11.8757519]
[1749172311762,10.8579025,145.2,145.19,11.8757519]
[1749172311967,6.08308,145.2,145.19,11.8757519]
[1749172312472,10.86280796,145.2,145.19,11.8757519]
[1749172312667,6.08308,145.2,145.19,11.8757519]
[1749172312867,10.86281019,145.2,145.19,11.8757519]
[1749172313073,10.86281019,145.2,145.19,6.884]
[1749172313376,6.08308,145.2,145.19,6.884]
[1749172313570,10.86280722,145.2,145.19,6.884]
[1749172314271,6.08308,145.2,145.19,6.884]
[1749172314776,10.8629263,145.2,145.19,6.884]
[1749172314966,6.08308,145.2,145.19,6.884]
[1749172315373,10.8574086,145.2,145.19,6.884]
[1749172315673,6.08308,145.2,145.19,6.884]
[1749172315968,0.0521127,145.21,145.19,6.884]
[1749172316180,6.40410474,145.24,145.2,4.9917519]
[1749172316363,6.08442364,145.23,145.19,35.54]
[1749172316673,2.3092,145.26,145.23,4.9917519]
[1749172316871,13.80279118,145.25,145.24,6.8817]
[1749172317070,13.8027912,145.25,145.24,6.8817]
[1749172317265,6.08208529,145.25,145.24,6.8817]
[1749172317970,6.08208529,145.25,145.23,6.93313612]
[1749172318171,6.08208529,145.24,145.23,6.93313612]
[1749172318674,6.08208529,145.24,145.23,0.05103612]
[1749172320374,6.08208529,145.24,145.23,6.93333612]
[1749172320570,0.04904267,145.26,145.23,6.93333612]
[1749172320775,6.07580839,145.25,145.23,6.93333612]
[1749172320973,0.04904267,145.26,145.23,6.93333612]
[1749172321175,6.07568198,145.25,145.23,6.93333612]
[1749172321474,0.04904267,145.26,145.23,6.93333612]
[1749172321773,6.08350037,145.25,145.23,6.93333612]
[1749172321977,0.04904267,145.26,145.23,6.93333612]
[1749172322175,6.08236837,145.25,145.24,6.8818]
[1749172322876,0.04904267,145.26,145.25,6.8813]
[1749172323066,6.12993116,145.26,145.25,6.8813]
[1749172323673,6.12993116,145.26,145.24,6.8818]
[1749172323872,0.04904267,145.26,145.23,5.04278802]
[1749172324973,0.04904267,145.26,145.25,6.8813]
[1749172326678,0.04904267,145.26,145.24,6.8816]
[1749172326873,0.04904267,145.26,145.23,5.04278802]
[1749172327369,0.04904267,145.26,145.24,11.8731519]
[1749172329377,0.04904267,145.26,145.25,6.8813]
[1749172336679,0.04904267,145.26,145.24,11.8733519]
[1749172336880,0.04904267,145.26,145.23,0.05103612]
[1749172337578,6.8816,145.25,145.23,0.05103612]
[1749172337977,2.23854267,145.26,145.23,0.05103612]
[1749172338679,9.11954267,145.26,145.23,6.93313612]
[1749172339684,2.23854267,145.26,145.23,6.93313612]
[1749172341088,9.11944267,145.26,145.23,6.93313612]
[1749172341288,2.23854267,145.26,145.23,6.93313612]
[1749172341687,2.23854267,145.26,145.24,6.8818]
[1749172342584,2.23854267,145.26,145.23,0.05103612]
[1749172342788,9.11944267,145.26,145.23,0.05103612]
[1749172343089,2.23854267,145.26,145.23,0.05103612]
[1749172343290,9.11974267,145.26,145.23,0.05103612]
[1749172343683,2.23854267,145.26,145.23,0.05103612]
[1749172343880,6.8818,145.24,145.23,0.05103612]
[1749172344089,6.06652962,145.24,145.18,4.9917519]
[1749172344285,2.1096,145.25,145.2,11.8750519]
[1749172344493,12.94831304,145.24,145.2,4.9917519]
[1749172344691,6.0689611,145.23,145.2,4.9917519]
[1749172344884,2.1096,145.25,145.2,4.9917519]
[1749172345080,6.11876126,145.24,145.21,0.05029501]
[1749172345280,6.06883375,145.23,145.21,0.05029501]
[1749172345486,0.04992751,145.24,145.21,0.05029501]
[1749172345691,6.06910996,145.23,145.21,6.93319501]
[1749172345886,6.93202751,145.24,145.21,0.05029501]
[1749172346092,6.07062196,145.23,145.21,0.05029501]
[1749172346393,43.17202751,145.24,145.21,0.05029501]
[1749172346585,6.07085413,145.23,145.21,0.05029501]
[1749172346782,36.28992751,145.24,145.21,0.05029501]
[1749172346995,6.07133363,145.23,145.21,0.05029501]
[1749172347187,36.28992751,145.24,145.21,0.05029501]
[1749172347391,6.07154005,145.23,145.21,0.05029501]
[1749172347694,6.8823,145.23,145.21,0.05029501]
[1749172348392,6.8828,145.22,145.21,0.05029501]
[1749172348586,6.0725839,145.22,145.21,0.05029501]
[1749172349496,36.28992751,145.24,145.21,0.05029501]
[1749172349697,12.95534459,145.23,145.21,0.05029501]
[1749172349997,6.07294459,145.22,145.21,0.05029501]
[1749172350496,6.8824,145.23,145.21,0.05029501]
[1749172350696,6.07162175,145.22,145.21,0.05029501]
[1749172351400,43.17192751,145.24,145.21,0.05029501]
[1749172351596,6.07090954,145.23,145.21,0.05029501]
[1749172351897,43.17192751,145.24,145.21,6.93329501]
[1749172352092,6.07109767,145.23,145.21,6.93329501]
[1749172352301,36.28992751,145.24,145.21,0.05029501]
[1749172352894,6.07158429,145.23,145.21,0.05029501]
[1749172353200,6.07069103,145.22,145.21,0.05029501]
[1749172353901,36.28992751,145.24,145.21,0.05029501]
[1749172354099,6.07068666,145.23,145.21,0.05029501]
[1749172354300,36.28992751,145.24,145.21,0.05029501]
[1749172354800,6.07079979,145.23,145.22,6.8828]
[1749172355301,36.28992751,145.24,145.21,0.05029501]
[1749172355503,6.0712468,145.23,145.22,6.8828]
[1749172356297,36.28992751,145.24,145.22,6.8828]
[1749172356497,6.07205982,145.23,145.22,6.8828]
[1749172358696,36.28992751,145.24,145.22,6.8828]
[1749172358999,36.28992751,145.24,145.23,6.8823]
[1749172359301,6.12397955,145.24,145.23,6.8823]
[1749172359993,6.12397955,145.24,145.22,6.8827]
[1749172360198,0.04992751,145.24,145.22,6.8827]
[1749172362603,6.07804327,145.23,145.22,6.8827]
[1749172363311,0.04992751,145.24,145.21,5.04204691]
[1749172363312,0.04992751,145.24,145.23,6.8823]
[1749172363506,6.12754469,145.24,145.23,6.8823]
[1749172363714,0.04992751,145.24,145.23,6.8823]
[1749172364421,0.04992751,145.24,145.23,11.8740519]
[1749172366120,0.04992751,145.24,145.21,0.05029501]
[1749172367414,6.07961309,145.23,145.21,0.05029501]
[1749172367612,2.27192751,145.24,145.21,0.05029501]
[1749172367817,41.97963301,145.23,145.16,4.9917519]
[1749172368122,13.81357274,145.22,145.16,4.9917519]
[1749172368321,6.07963301,145.21,145.16,4.9917519]
[1749172368616,6.07963301,145.2,145.16,4.9917519]
[1749172368822,6.12940259,145.19,145.16,4.9917519]
[1749172369013,0.04976958,145.19,145.16,4.9917519]
[1749172369719,0.04976958,145.19,145.16,11.8771519]
[1749172370023,6.08094143,145.18,145.16,6.8854]
[1749172370223,0.04976958,145.19,145.16,6.8854]
[1749172370424,6.08746527,145.18,145.17,6.8851]
[1749172371017,6.08746527,145.18,145.16,6.8854]
[1749172371216,0.04976958,145.19,145.16,6.8854]
[1749172372729,6.93396958,145.19,145.15,6.886]
[1749172372928,6.07581159,145.18,145.11,35.92]
[1749172373118,6.07581159,145.18,145.12,4.9917519]
[1749172373119,0.05238954,145.16,145.12,4.9917519]
[1749172373320,0.05238954,145.16,145.14,6.8862]
[1749172374125,0.05238954,145.16,145.12,4.9917519]
[1749172374826,0.05238954,145.16,145.13,6.887]
[1749172376822,6.93808954,145.16,145.13,6.887]
[1749172381733,6.8861,145.15,145.11,6.8877]
[1749172381931,42.8061,145.15,145.11,6.8877]
[1749172382232,38.078,145.15,145.1,4.9917519]
[1749172382429,38.078,145.15,145.12,6.887]
[1749172382831,38.078,145.15,145.12,11.8787519]
[1749172383032,35.92,145.15,145.12,4.9917519]
[1749172383533,0.05238954,145.16,145.14,4.9917519]
[1749172383732,0.05183994,145.16,145.14,4.9917519]
[1749172384433,0.05183994,145.16,145.14,11.8779519]
[1749172386633,0.05183994,145.16,145.15,6.8861]
[1749172387530,0.05183994,145.16,145.14,11.8781519]
[1749172387731,0.05183994,145.16,145.14,4.9917519]
[1749172388733,0.05183994,145.16,145.08,35.92]
[1749172388923,6.8853,145.17,145.13,4.9917519]
[1749172389129,0.04867589,145.16,145.13,4.9917519]
[1749172389530,0.04867589,145.16,145.13,6.8867]
[1749172389737,0.04867589,145.16,145.13,4.9917519]
[1749172390033,0.04867589,145.16,145.14,6.8862]
[1749172390228,0.04867589,145.16,145.15,4.9917519]
[1749172390537,0.04410164,145.17,145.15,4.9917519]
[1749172391232,0.04410164,145.17,145.16,6.8856]
[1749172398542,40.1412,145.24,145.15,4.9917519]
[1749172398835,40.1412,145.24,145.12,37.3223]
[1749172398836,35.6,145.24,145.22,4.9917519]
[1749172399339,35.6,145.24,145.18,35.6]
[1749172399538,0.04806604,145.22,145.2,0.04410164]
[1749172399734,15.7681372,145.21,145.15,4.9917519]
[1749172399931,6.06719498,145.2,145.15,4.9917519]
[1749172400136,6.8838,145.2,145.16,6.8853]
[1749172400538,42.4838,145.2,145.16,6.8853]
[1749172400738,0.05192121,145.19,145.16,6.8853]
[1749172400934,6.93612121,145.19,145.15,11.8777519]
[1749172401139,0.05192121,145.19,145.15,4.9917519]
[1749172401641,6.93632121,145.19,145.15,11.8778519]
[1749172402940,6.8847,145.18,145.15,4.9917519]
[1749172403740,6.8847,145.18,145.15,11.8777519]
[1749172404136,2.94072028,145.17,145.15,11.8777519]
[1749172404338,4.75410421,145.16,145.15,11.8777519]
[1749172404642,6.93632121,145.19,145.15,11.8777519]
[1749172404942,7.68945188,145.18,145.15,11.8777519]
[1749172405143,7.68945107,145.17,145.16,6.8856]
[1749172405444,7.68947055,145.17,145.16,6.8856]
[1749172405743,2.94089064,145.17,145.16,6.8856]
[1749172405943,4.74856983,145.17,145.16,6.8856]
[1749172406136,7.69434274,145.17,145.16,6.8856]
[1749172406338,7.69429572,145.17,145.16,6.8856]
[1749172406533,4.7535982,145.17,145.16,6.8856]
[1749172406740,2.94087138,145.17,145.14,6.8861]
[1749172406946,7.69449899,145.16,145.14,4.9917519]
[1749172407146,0.04453235,145.17,145.14,4.9917519]
[1749172407344,7.6944961,145.16,145.15,6.8858]
[1749172407538,4.75361374,145.16,145.15,6.8858]
[1749172407737,4.75361588,145.16,145.15,6.8858]
[1749172407939,0.04453235,145.17,145.16,6.8856]
[1749172408238,0.04453235,145.17,145.16,11.8773519]
[1749172417441,0.04453235,145.17,145.16,4.9917519]
[1749172417754,0.04453235,145.17,145.15,6.886]
[1749172418652,6.11584251,145.16,145.15,6.886]
[1749172419248,6.11606218,145.16,145.15,6.886]
[1749172419650,0.04453235,145.17,145.15,6.886]
[1749172421453,6.11406494,145.16,145.15,6.886]
[1749172421654,0.04453235,145.17,145.15,6.886]
[1749172422647,9.0309398,145.16,145.15,6.886]
[1749172422853,10.85200153,145.16,145.14,11.8781519]
[1749172423151,6.92973235,145.17,145.14,11.8781519]
[1749172423354,6.09647855,145.16,145.14,11.8781519]
[1749172423554,6.92973235,145.17,145.14,6.8864]
[1749172423749,6.12299424,145.16,145.14,6.8864]
[1749172423950,6.92973235,145.17,145.14,6.8864]
[1749172424149,6.1231009,145.16,145.14,6.8864]
[1749172424354,6.92973235,145.17,145.14,6.8864]
[1749172424552,10.87749907,145.16,145.14,6.8864]
[1749172424752,6.92973235,145.17,145.14,6.8864]
[1749172424953,10.87808562,145.16,145.14,6.8864]
[1749172425154,6.92973235,145.17,145.14,6.8864]
[1749172425354,17.76380878,145.16,145.13,11.8786519]
[1749172425548,11.63978218,145.16,145.13,11.8786519]
[1749172425754,6.8856,145.16,145.13,11.8786519]
[1749172426956,6.12422239,145.15,145.13,11.8786519]
[1749172427256,6.8856,145.16,145.13,11.8786519]
[1749172427555,6.12423013,145.15,145.13,11.8786519]
[1749172427752,6.92983235,145.17,145.13,11.8786519]
[1749172427953,13.80504294,145.16,145.14,6.8864]
[1749172428154,6.12416787,145.15,145.14,6.8864]
[1749172428555,6.92983235,145.17,145.14,6.8864]
[1749172428756,6.12455562,145.16,145.14,6.8864]
[1749172428955,6.92983235,145.17,145.14,6.8864]
[1749172429151,10.87507983,145.16,145.14,6.8864]
[1749172429460,6.12542423,145.15,145.14,6.8864]
[1749172429659,6.92983235,145.17,145.14,6.8864]
[1749172429860,6.12533206,145.16,145.14,6.8864]
[1749172430060,6.92983235,145.17,145.14,6.8864]
[1749172430254,6.12195142,145.16,145.14,6.8864]
[1749172430455,6.92983235,145.17,145.14,6.8864]
[1749172430661,6.12256656,145.16,145.14,6.8864]
[1749172430960,6.92983235,145.17,145.14,6.8864]
[1749172431160,10.85650885,145.16,145.14,6.8864]
[1749172431355,6.92983235,145.17,145.14,6.8864]
[1749172431554,6.1222342,145.16,145.14,6.8864]
[1749172431756,6.92983235,145.17,145.14,6.8864]
[1749172431962,6.12988689,145.16,145.14,6.8864]
[1749172432159,6.92983235,145.17,145.14,6.8864]
[1749172432360,6.13003617,145.16,145.14,6.8864]
[1749172432555,6.92983235,145.17,145.14,6.8864]
[1749172432761,6.13003468,145.16,145.14,6.8864]
[1749172432961,6.92983235,145.17,145.14,6.8864]
[1749172433162,6.13003468,145.16,145.14,6.8864]
[1749172433362,6.92983235,145.17,145.14,6.8864]
[1749172433564,6.13050238,145.16,145.14,6.8864]
[1749172433763,6.92983235,145.17,145.14,6.8864]
[1749172433964,6.13050238,145.16,145.14,6.8864]
[1749172434165,6.92983235,145.17,145.14,6.8864]
[1749172434374,6.1309282,145.16,145.14,6.8864]
[1749172434573,6.92983235,145.17,145.14,6.8864]
[1749172434773,6.13093208,145.16,145.14,6.8864]
[1749172435072,6.92983235,145.17,145.14,6.8864]
[1749172435372,6.12926983,145.16,145.14,6.8864]
[1749172435573,6.92983235,145.17,145.14,6.8864]
[1749172435771,6.12941784,145.16,145.14,6.8864]
[1749172435971,6.92983235,145.17,145.14,6.8864]
[1749172436171,6.129279,145.16,145.15,11.8778519]
[1749172436376,0.04453235,145.17,145.15,4.9917519]
[1749172436768,0.04453235,145.17,145.16,6.8856]
[1749172436975,6.17341252,145.17,145.16,6.8856]
[1749172438077,0.04453235,145.17,145.16,6.8856]
[1749172438776,6.17305834,145.17,145.16,6.8856]
[1749172438969,0.04453235,145.17,145.16,6.8856]
[1749172439167,6.1730409,145.17,145.16,6.8856]
[1749172439368,0.04453235,145.17,145.16,6.8856]
[1749172441369,8.57369386,145.22,145.15,4.9917519]
[1749172441578,6.14026708,145.21,145.19,4.9917519]
[1749172441870,6.14026708,145.2,145.19,4.9917519]
[1749172442579,0.05140842,145.21,145.2,6.8837]
[1749172442777,6.18894833,145.21,145.2,6.8837]
[1749172444578,10.91239967,145.21,145.18,0.04453235]
[1749172444774,6.13753991,145.2,145.18,0.04453235]
[1749172444976,6.13753991,145.19,145.18,0.04453235]
[1749172445474,6.13753991,145.19,145.18,6.92923235]
[1749172447083,6.13753991,145.19,145.18,0.04453235]
[1749172448485,6.13753991,145.19,145.18,6.92923235]
[1749172453887,6.13753991,145.19,145.18,0.04453235]
[1749172456290,6.13753991,145.19,145.18,6.92923235]
[1749172461291,6.13753991,145.19,145.18,0.04453235]
[1749172464893,6.13753991,145.19,145.18,6.92923235]
[1749172466899,6.13753991,145.19,145.18,0.04453235]
[1749172470101,6.13753991,145.19,145.18,6.92923235]
[1749172474000,6.13753991,145.19,145.18,0.04453235]
[1749172474900,6.13753991,145.19,145.14,4.9917519]
[1749172475096,44.22760228,145.21,145.14,4.9917519]
[1749172475097,13.82716111,145.18,145.14,4.9917519]
[1749172475294,6.13753991,145.17,145.14,4.9917519]
[1749172475500,2.9283588,145.19,145.14,4.9917519]
[1749172475700,6.15284548,145.18,145.14,4.9917519]
[1749172475900,6.204111,145.17,145.14,4.9917519]
[1749172476095,0.05126552,145.17,145.14,4.9917519]
[1749172476301,0.05126552,145.17,145.16,4.9917519]
[1749172476601,6.20493406,145.17,145.16,4.9917519]
[1749172478199,6.20493406,145.17,145.16,11.8773519]
[1749172481306,6.20493406,145.17,145.16,4.9917519]
[1749172481501,6.20493406,145.17,145.15,6.8859]
[1749172481702,6.15366854,145.16,145.15,6.8859]
[1749172482410,0.05126552,145.17,145.15,6.8859]
[1749172483009,6.16102737,145.16,145.15,6.8859]
[1749172484207,0.05126552,145.17,145.15,6.8859]
[1749172485909,6.16037665,145.16,145.15,6.8859]
[1749172486108,0.05126552,145.17,145.15,6.8859]
[1749172486607,6.16062452,145.16,145.15,6.8859]
[1749172486804,0.05126552,145.17,145.15,6.8859]
[1749172487601,6.16175654,145.16,145.15,6.8859]
[1749172489210,6.16175654,145.16,145.15,10.07296765]
[1749172491111,6.16175654,145.16,145.15,3.18706765]
[1749172492909,6.16175654,145.16,145.15,10.07316765]
[1749172495713,6.16700761,145.16,145.15,10.07316765]
[1749172498121,9.35407526,145.16,145.12,11.99]
[1749172498317,14.47099211,145.15,145.12,11.99]
[1749172498619,6.16700761,145.14,145.12,18.8771]
[1749172498819,0.04400907,145.14,145.13,3.18879845]
[1749172499022,6.22116685,145.14,145.13,3.18879845]
[1749172499222,0.04400907,145.14,145.13,3.18879845]
[1749172499415,0.04400907,145.14,145.13,10.07579845]
[1749172501114,0.04400907,145.14,145.13,3.18879845]
[1749172501314,6.21871743,145.14,145.13,3.18879845]
[1749172501517,6.21871743,145.14,145.12,11.99]
[1749172501812,6.17470836,145.13,145.12,15.17879845]
[1749172502618,6.17470836,145.13,145.12,22.06629845]
[1749172502816,0.04400907,145.14,145.12,15.17879845]
[1749172503019,0.04400907,145.14,145.13,3.18879845]
[1749172503219,0.04400907,145.14,145.13,4.97985703]
[1749172503621,0.04400907,145.14,145.13,11.86685703]
[1749172504416,0.04400907,145.14,145.13,6.887]
[1749172518526,7.68865879,145.18,145.13,4.97985703]
[1749172518724,6.17027115,145.17,145.13,4.97985703]
[1749172518930,6.8842,145.19,145.13,4.97985703]
[1749172519124,9.09687309,145.18,145.15,6.8857]
[1749172519325,10.92685499,145.17,145.15,6.8857]
[1749172519516,10.92685499,145.17,145.15,6.92927205]
[1749172519517,0.04561628,145.17,145.15,6.92927205]
[1749172519723,6.1704622,145.16,145.15,6.92927205]
[1749172524622,6.16991928,145.16,145.15,6.92927205]
[1749172525232,6.16991928,145.16,145.15,10.11648286]
[1749172526821,10.92949673,145.16,145.15,10.11648286]
[1749172527023,6.16991928,145.16,145.15,10.11648286]
[1749172527829,10.92949673,145.16,145.15,10.11648286]
[1749172528038,6.16991928,145.16,145.15,10.11648286]
[1749172528330,0.04561628,145.17,145.15,10.11648286]
[1749172528533,0.04561628,145.17,145.16,6.8856]
[1749172528727,10.97449167,145.17,145.16,6.8856]
[1749172528922,13.90263058,145.17,145.16,6.8856]
[1749172529127,9.14364714,145.17,145.16,6.8856]
[1749172529431,13.9027471,145.17,145.16,6.8856]
[1749172529834,13.90274791,145.17,145.16,6.8856]
[1749172530135,10.97464264,145.17,145.16,10.07281081]
[1749172530532,13.90280303,145.17,145.16,10.07281081]
[1749172530727,9.14354175,145.17,145.16,10.07281081]
[1749172530928,0.04561628,145.17,145.16,10.07281081]
[1749172531128,6.21530274,145.17,145.16,10.07281081]
[1749172532036,0.04561628,145.17,145.16,10.07281081]
[1749172532233,6.21497455,145.17,145.16,10.07281081]
[1749172532938,6.21497455,145.17,145.15,6.92947205]
[1749172533163,4.75823373,145.16,145.15,6.92947205]
[1749172533346,10.92785316,145.16,145.15,6.92947205]
[1749172533742,13.86260235,145.16,145.15,6.92947205]
[1749172533931,13.86261394,145.16,145.15,10.11668286]
[1749172534137,9.10434841,145.16,145.15,10.11668286]
[1749172534336,10.92821951,145.16,145.15,10.11668286]
[1749172534539,10.92821732,145.16,145.15,10.11668286]
[1749172534743,6.16961943,145.16,145.15,10.11668286]
[1749172535034,0.04561628,145.17,145.16,6.8856]
[1749172535238,10.98452086,145.17,145.16,6.8856]
[1749172535550,13.91926672,145.17,145.16,6.8856]
[1749172535737,10.9845402,145.17,145.16,6.8856]
[1749172535937,13.91929727,145.17,145.16,6.8856]
[1749172536137,9.14966889,145.17,145.16,6.8856]
[1749172536342,13.92054284,145.17,145.16,6.8856]
[1749172536536,10.98578221,145.17,145.16,6.8856]
[1749172536731,13.92058484,145.17,145.16,6.8856]
[1749172537042,6.21491182,145.17,145.16,10.07281081]
[1749172537239,0.04561628,145.17,145.16,10.07281081]
[1749172537940,6.21541122,145.17,145.16,10.07281081]
[1749172538242,0.04561628,145.17,145.16,10.07281081]
[1749172538444,6.21554902,145.17,145.16,10.07281081]
[1749172538639,6.21508908,145.17,145.16,10.07281081]
[1749172540444,0.04561628,145.17,145.16,10.07281081]
[1749172541042,6.21447053,145.17,145.16,10.07281081]
[1749172541545,0.04561628,145.17,145.16,10.07281081]
[1749172542046,6.21420643,145.17,145.16,10.07281081]
[1749172542449,0.04561628,145.17,145.16,10.07281081]
[1749172545951,6.21453109,145.17,145.16,10.07281081]
[1749172546549,6.21574037,145.17,145.16,10.07281081]
[1749172546848,0.04561628,145.17,145.16,10.07281081]
[1749172547049,6.21574037,145.17,145.16,10.07258746]
[1749172547250,6.21581392,145.17,145.16,10.07258746]
[1749172547449,6.21729553,145.17,145.16,10.07258746]
[1749172547847,6.21729553,145.17,145.16,6.8856]
[1749172548153,6.21729553,145.17,145.16,10.07258746]
[1749172549253,0.04561628,145.17,145.16,10.07258746]
[1749172549452,6.2173377,145.17,145.16,10.07258746]
[1749172550751,6.2173377,145.17,145.16,6.8856]
[1749172551250,0.04561628,145.17,145.16,6.8856]
[1749172551451,6.21723543,145.17,145.16,6.8856]
[1749172551654,0.04561628,145.17,145.16,6.8856]
[1749172552152,6.21728145,145.17,145.16,6.8856]
[1749172553353,0.04561628,145.17,145.16,6.8856]
[1749172553749,6.21707983,145.17,145.16,10.07258746]
[1749172555753,0.04561628,145.17,145.16,10.07258746]
[1749172555953,6.21759548,145.17,145.16,10.07258746]
[1749172559055,6.21759548,145.17,145.16,10.07229901]
[1749172560948,6.21759548,145.17,145.15,6.92947205]
[1749172561151,6.17237139,145.16,145.15,6.92947205]
[1749172561450,6.17266028,145.16,145.15,6.92947205]
[1749172562155,6.17266028,145.16,145.15,10.11706204]
[1749172562751,6.17266028,145.16,145.15,3.23116204]
[1749172563257,13.8664292,145.16,145.15,3.23116204]
[1749172563455,9.10387435,145.16,145.15,3.23116204]
[1749172563655,10.93521517,145.16,145.15,0.04357205]
[1749172564054,6.17266028,145.16,145.15,6.92967205]
[1749172564253,10.93508608,145.16,145.15,6.92967205]
[1749172564454,10.93508146,145.16,145.15,6.92967205]
[1749172564759,13.85989641,145.16,145.15,6.92967205]
[1749172564958,9.0974761,145.16,145.15,6.92967205]
[1749172565258,13.85989641,145.16,145.15,6.92967205]
[1749172565457,13.85989691,145.16,145.15,6.92967205]
[1749172565659,9.0974766,145.16,145.15,6.92967205]
[1749172565859,6.17266028,145.16,145.15,6.92967205]
[1749172567460,6.17266028,145.16,145.15,10.11726204]
[1749172570862,6.17266028,145.16,145.15,6.92967205]
[1749172571062,10.93224902,145.16,145.15,0.04357205]
[1749172571251,13.8563719,145.16,145.15,0.04357205]
[1749172571456,13.85637188,145.16,145.15,0.04357205]
[1749172571656,10.93225116,145.16,145.15,0.04357205]
[1749172571953,13.85631596,145.16,145.13,15.05758999]
[1749172572159,6.17266028,145.15,145.13,15.05758999]
[1749172572359,3.23320627,145.17,145.13,15.05758999]
[1749172572560,10.92259199,145.16,145.13,15.05758999]
[1749172572761,6.16590274,145.15,145.13,21.94448999]
[1749172572962,6.16590274,145.14,145.13,18.7569]
[1749172573568,3.18758999,145.15,145.13,11.87]
[1749172573763,14.10931405,145.14,145.13,8.3629]
[1749172573971,14.43450215,145.14,145.06,35.44]
[1749172574172,3.18758999,145.08,145.07,6.8896]
[1749172574369,3.18758999,145.08,145.04,3.18758999]
[1749172574561,0.04966778,145.07,145.04,3.18758999]
[1749172574762,0.04966778,145.07,145.06,10.07768999]
[1749172575268,0.04966778,145.07,145.06,11.87536315]
[1749172580079,0.04966778,145.07,145.06,6.8901]
[1749172580372,0.04966778,145.07,145.06,11.87536315]
[1749172580772,6.778e-05,145.07,145.06,11.87536315]
[1749172581079,2.2429,145.13,145.06,4.98526315]
[1749172581277,37.5374,145.14,145.1,4.98526315]
[1749172581577,37.6229,145.17,145.15,6.886]
[1749172581880,13.70156656,145.16,145.13,4.98526315]
[1749172582068,0.04798005,145.16,145.13,5.03536795]
[1749172582268,0.04798005,145.16,145.14,6.8864]
[1749172582770,0.04798005,145.16,145.13,11.92226795]
[1749172582971,0.04798005,145.16,145.13,0.0501048]
[1749172583581,6.93388005,145.16,145.13,0.0501048]
[1749172583782,2.89518673,145.15,145.13,0.0501048]
[1749172584082,6.8864,145.15,145.13,0.0501048]
[1749172584879,4.70750215,145.14,145.13,0.0501048]
[1749172585282,6.8864,145.15,145.13,0.0501048]
[1749172585881,6.12454246,145.14,145.13,0.0501048]
[1749172586280,17.71547884,145.14,145.13,0.0501048]
[1749172586482,19.96518507,145.14,145.13,0.0501048]
[1749172586679,19.96518549,145.14,145.13,0.0501048]
[1749172586884,19.96518561,145.14,145.13,0.0501048]
[1749172587286,22.85677815,145.14,145.13,0.0501048]
[1749172587481,6.8873,145.13,145.09,6.8888]
[1749172587681,35.38,145.12,145.09,6.8888]
[1749172588484,42.31766114,145.12,145.09,6.8888]
[1749172588782,42.31766114,145.12,145.08,6.8892]
[1749172589582,42.31766114,145.12,145.09,6.8889]
[1749172590087,6.888,145.11,145.06,4.98526315]
[1749172590477,6.888,145.11,145.08,6.8891]
[1749172590884,42.31766114,145.12,145.06,4.98526315]
[1749172591188,6.10747791,145.11,145.06,4.98526315]
[1749172591383,42.31766114,145.12,145.06,4.98526315]
[1749172591590,35.43016114,145.12,145.09,6.8889]
[1749172591986,35.43016114,145.12,145.08,6.8892]
[1749172592290,6.888,145.11,145.06,4.98526315]
[1749172592689,6.888,145.11,145.07,6.8895]
[1749172594591,6.888,145.11,145.08,6.8893]
[1749172600596,6.888,145.11,145.07,6.8898]
[1749172601000,4.98526315,145.09,145.01,4.98526315]
[1749172601198,0.04628319,145.06,145.01,4.98526315]
[1749172602095,0.04628319,145.06,145.04,6.891]